fUSD/lending_fUSD_20240327
["ID","MTS","AMOUNT","RATE_DAILY","PERIOD"]
[320775462,1711553452711,-901.38,0.00054246,120]
[320775463,1711553452721,-607.18,0.00054246,120]
[320775464,1711553452730,-500.0,0.00054246,120]
[320775465,1711553452740,-151.0,0.00054246,120]
[320775466,1711553452750,-500.0,0.00054246,120]
[320775467,1711553452761,-1186.25,0.00054246,120]
[320775468,1711553452770,-151.0,0.00054246,120]
[320775469,1711553452780,-1568.8,0.00054246,120]
[320775470,1711553452789,-500.0,0.00054246,120]
[320775471,1711553452798,-760.83,0.00054246,120]
[320775472,1711553452809,-151.0,0.00054246,120]
[320775473,1711553452818,-503.88103075,0.00054246,120]
[320775474,1711553452828,-6991.21,0.00054246,120]
[320775475,1711553452838,-500.0,0.00054246,120]
[320775476,1711553452847,-1537.94,0.00054246,120]
[320775477,1711553452858,-528.05,0.00054246,120]
[320775478,1711553452867,-503.94344614,0.00054246,120]
[320775479,1711553452876,-500.0,0.00054246,120]
[320775480,1711553452885,-900.9,0.00054246,120]
[320775481,1711553452895,-500.0,0.00054246,120]
[320775482,1711553452903,-674.89,0.00054246,120]
[320775483,1711553452913,-500.0,0.00054246,120]
[320775484,1711553452923,-151.0,0.00054246,120]
[320775485,1711553452932,-552.27,0.00054246,120]
[320775486,1711553452941,-4580.08,0.00054246,120]
[320775487,1711553452950,-7302.29,0.00054246,120]
[320775488,1711553452960,-588.79,0.00054246,120]
[320775489,1711553452970,-13451.5,0.00054246,120]
[320775490,1711553452982,-534.09509691,0.00054246,120]
[320775491,1711553452993,-500.0,0.00054246,120]
[320775492,1711553453004,-500.0,0.00054246,120]
[320775493,1711553453015,-500.0,0.00054246,120]
[320775494,1711553453025,-500.0,0.00054246,120]
[320775495,1711553453036,-500.0,0.00054246,120]
[320775496,1711553453047,-500.0,0.00054246,120]
[320775497,1711553453057,-5189.29,0.00054246,120]
[320775498,1711553453070,-500.0,0.00054246,120]
[320775499,1711553453080,-591.81,0.00054246,120]
[320775500,1711553453091,-500.0,0.00054246,120]
[320775501,1711553453101,-151.0,0.00054246,120]
[320775502,1711553453111,-550.61,0.00054246,120]
[320775503,1711553453121,-761.47,0.00054246,120]
[320775504,1711553453131,-595.42,0.00054246,120]
[320775505,1711553453140,-2785.35,0.00054246,120]
[320775506,1711553453149,-67609.91,0.00054246,120]
[320775507,1711553453160,-503.08594213,0.00054246,120]
[320775508,1711553453170,-500.0,0.00054246,120]
[320775509,1711553453181,-500.0,0.00054246,120]
[320775510,1711553453192,-500.0,0.00054246,120]
[320775511,1711553453202,-671.65,0.00054246,120]
[320775512,1711553453212,-5671.67,0.00054246,120]
[320775513,1711553453223,-500.0,0.00054246,120]
[320775514,1711553453233,-151.0,0.00054246,120]
[320775515,1711553453243,-3381.36,0.00054246,120]
[320775516,1711553453253,-1358.4,0.00054246,120]
[320775517,1711553453263,-500.0,0.00054246,120]
[320775518,1711553453273,-151.0,0.00054246,120]
[320775519,1711553453283,-500.0,0.00054246,120]
[320775520,1711553453293,-2092.96,0.00054246,120]
[320775521,1711553453303,-500.0,0.00054246,120]
[320775522,1711553453315,-1243.56,0.00054246,120]
[320775523,1711553453325,-6690.64,0.00054246,120]
[320775524,1711553453337,-500.0,0.00054246,120]
[320775525,1711553453346,-500.0,0.00054246,120]
[320775526,1711553453356,-500.0,0.00054246,120]
[320775527,1711553453365,-225.23196616,0.00054246,120]
[320775528,1711553453375,-500.0,0.00054246,120]
[320775529,1711553453385,-500.0,0.00054246,120]
[320775530,1711553453395,-151.0,0.00054246,120]
[320775531,1711553453404,-750.59,0.00054246,120]
[320775532,1711553453414,-500.0,0.00054246,120]
[320775533,1711553453424,-741.12,0.00054246,120]
[320775534,1711553453433,-500.0,0.00054246,120]
[320775535,1711553453444,-500.0,0.00054246,120]
[320775536,1711553453454,-3086.02,0.00054246,120]
[320775537,1711553453464,-500.0,0.00054246,120]
[320775538,1711553453478,-790.75,0.00054246,120]
[320775539,1711553453488,-2407.06,0.00054246,120]
[320775540,1711553453497,-5657.94,0.00054246,120]
[320775541,1711553453507,-1107.76,0.00054246,120]
[320775542,1711553453516,-500.0,0.00054246,120]
[320775543,1711553453525,-11997.26,0.00054246,120]
[320775544,1711553453535,-500.0,0.00054246,120]
[320775545,1711553453545,-167.203434,0.00054246,7]
[320775546,1711553453556,-500.0,0.00054246,120]
[320775547,1711553453570,-818.86,0.00054246,120]
[320775548,1711553453579,-151.0,0.00054246,120]
[320775549,1711553453589,-500.0,0.00054246,120]
[320775550,1711553453599,-500.0,0.00054246,120]
[320775551,1711553453609,-500.0,0.00054246,120]
[320775552,1711553453619,-500.0,0.00054246,120]
[320775553,1711553453630,-4629.55,0.00054246,120]
[320775554,1711553453640,-500.0,0.00054246,120]
[320775555,1711553453651,-3475.94,0.00054246,120]
[320775556,1711553453661,-500.0,0.00054246,120]
[320775557,1711553453672,-500.0,0.00054246,120]
[320775558,1711553453683,-500.0,0.00054246,120]
[320775559,1711553453694,-500.0,0.00054246,120]
[320775560,1711553453705,-500.0,0.00054246,120]
[320775561,1711553453716,-151.0,0.00054246,120]
[320775562,1711553453727,-1977.07,0.00054246,120]
[320775563,1711553453738,-2713.7,0.00054246,120]
[320775564,1711553453749,-835.79,0.00054246,120]
[320775565,1711553453760,-500.0,0.00054246,120]
[320775566,1711553453770,-500.0,0.00054246,120]
[320775567,1711553453781,-1159.13,0.00054246,120]
[320775568,1711553453791,-1528.18,0.00054246,120]
[320775569,1711553453802,-500.0,0.00054246,120]
[320775570,1711553453814,-3269.33,0.00054246,120]
[320775571,1711553453828,-6786.82,0.00054246,120]
[320775572,1711553453839,-5287.55,0.00054246,120]
[320775573,1711553453849,-793.54,0.00054246,120]
[320775574,1711553453859,-500.0,0.00054246,120]
[320775575,1711553453869,-2001.31,0.00054246,120]
[320775576,1711553453878,-2237.57,0.00054246,120]
[320775577,1711553453888,-500.0,0.00054246,120]
[320775578,1711553453898,-2349.98,0.00054246,120]
[320775579,1711553453908,-500.0,0.00054246,15]
[320775580,1711553453917,-648.32,0.00054246,120]
[320775581,1711553453925,-1626.95,0.00054246,120]
[320775582,1711553453935,-500.0,0.00054246,120]
[320775583,1711553453945,-500.0,0.00054246,120]
[320775584,1711553453955,-2987.09,0.00054246,120]
[320775585,1711553453966,-500.0,0.00054246,120]
[320775586,1711553453975,-1635.14,0.00054246,120]
[320775587,1711553453985,-500.0,0.00054246,120]
[320775588,1711553453994,-500.0,0.00054246,120]
[320775589,1711553454004,-1000.0,0.00054246,14]
[320775590,1711553454013,-912.7,0.00054246,120]
[320775591,1711553454023,-500.0,0.00054246,120]
[320775592,1711553454032,-301.21348107,0.00054246,2]
[320775593,1711553454042,-500.0,0.00054246,120]
[320775594,1711553454051,-1761.41,0.00054246,120]
[320775595,1711553454065,-1577.89,0.00054246,120]
[320775596,1711553454074,-18840.07,0.00054246,120]
[320775597,1711553454084,-1164.92,0.00054246,120]
[320775598,1711553454094,-500.0,0.00054246,120]
[320775599,1711553454103,-9152.34,0.00054246,120]
[320775600,1711553454112,-500.0,0.00054246,120]
[320775601,1711553454121,-617.48,0.00054246,120]
[320775602,1711553454130,-4763.49,0.00054246,120]
[320775603,1711553454138,-500.0,0.00054246,120]
[320775604,1711553454148,-500.0,0.00054246,120]
[320775605,1711553454158,-4144.61,0.00054246,120]
[320775606,1711553454168,-500.0,0.00054246,120]
[320775607,1711553454177,-2416.16,0.00054246,120]
[320775608,1711553454187,-151.0,0.00054246,120]
[320775609,1711553454197,-3872.4,0.00054246,120]
[320775610,1711553454206,-500.0,0.00054246,120]
[320775611,1711553454215,-1827.64,0.00054246,120]
[320775612,1711553454224,-4156.67,0.00054246,120]
[320775613,1711553454233,-500.0,0.00054246,120]
[320775614,1711553454242,-1711.52,0.00054246,120]
[320775615,1711553454252,-825.49,0.00054246,120]
[320775616,1711553454261,-500.0,0.00054246,120]
[320775617,1711553454272,-2283.13,0.00054246,120]
[320775618,1711553454281,-500.0,0.00054246,120]
[320775619,1711553454290,-500.0,0.00054246,120]
[320775620,1711553454299,-500.0,0.00054246,120]
[320775621,1711553454308,-4602.95,0.00054246,120]
[320775622,1711553454321,-651.54,0.00054246,120]
[320775623,1711553454330,-3004.37,0.00054246,120]
[320775624,1711553454340,-500.0,0.00054246,120]
[320775625,1711553454349,-688.36,0.00054246,120]
[320775626,1711553454360,-500.0,0.00054246,120]
[320775627,1711553454370,-1160.44,0.00054246,120]
[320775628,1711553454380,-500.0,0.00054246,120]
[320775629,1711553454389,-500.0,0.00054246,120]
[320775630,1711553454398,-1267.29,0.00054246,120]
[320775631,1711553454408,-500.0,0.00054246,120]
[320775632,1711553454417,-151.0,0.00054246,120]
[320775633,1711553454426,-500.0,0.00054246,120]
[320775634,1711553454436,-843.06,0.00054246,120]
[320775635,1711553454445,-3026.19,0.00054246,120]
[320775636,1711553454454,-4243.15,0.00054246,120]
[320775637,1711553454463,-500.0,0.00054246,120]
[320775638,1711553454472,-3059.6,0.00054246,120]
[320775639,1711553454482,-500.0,0.00054246,120]
[320775640,1711553454494,-1678.36,0.00054246,120]
[320775641,1711553454504,-6063.81,0.00054246,120]
[320775642,1711553454513,-151.0,0.00054246,120]
[320775643,1711553454523,-1817.92,0.00054246,120]
[320775644,1711553454533,-500.0,0.00054246,120]
[320775645,1711553454542,-500.0,0.00054246,120]
[320775646,1711553454551,-500.0,0.00054246,120]
[320775647,1711553454564,-3237.77,0.00054246,120]
[320775648,1711553454573,-1154.09,0.00054246,120]
[320775649,1711553454583,-500.0,0.00054246,120]
[320775650,1711553454592,-4215.04,0.00054246,120]
[320775651,1711553454602,-500.0,0.00054246,120]
[320775652,1711553454611,-500.0,0.00054246,120]
[320775653,1711553454621,-500.0,0.00054246,120]
[320775654,1711553454631,-500.0,0.00054246,120]
[320775655,1711553454641,-912.24,0.00054246,120]
[320775656,1711553454650,-2288.6,0.00054246,120]
[320775657,1711553454660,-500.0,0.00054246,120]
[320775658,1711553454671,-4804.76,0.00054246,120]
[320775659,1711553454683,-2886.23,0.00054246,120]
[320775660,1711553454692,-3025.17,0.00054246,120]
[320775661,1711553454702,-501.85448494,0.00054246,120]
[320775662,1711553454711,-500.0,0.00054246,120]
[320775663,1711553454721,-500.0,0.00054246,120]
[320775664,1711553454732,-12490.85,0.00054246,120]
[320775665,1711553454743,-657.85,0.00054246,120]
[320775666,1711553454754,-151.0,0.00054246,120]
[320775667,1711553454763,-500.0,0.00054246,120]
[320775668,1711553454774,-729.05,0.00054246,120]
[320775669,1711553454784,-500.0,0.00054246,120]
[320775670,1711553454794,-500.0,0.00054246,120]
[320775671,1711553454803,-7212.16,0.00054246,120]
[320775672,1711553454814,-726.03,0.00054246,120]
[320775673,1711553454824,-500.0,0.00054246,120]
[320775674,1711553454833,-1160.68,0.00054246,120]
[320775675,1711553454843,-2620.16,0.00054246,120]
[320775676,1711553454852,-500.0,0.00054246,120]
[320775677,1711553454862,-500.0,0.00054246,120]
[320775678,1711553454871,-500.0,0.00054246,120]
[320775679,1711553454881,-500.0,0.00054246,120]
[320775680,1711553454890,-500.0,0.00054246,120]
[320775681,1711553454900,-500.0,0.00054246,120]
[320775682,1711553454910,-500.0,0.00054246,120]
[320775683,1711553454919,-500.0,0.00054246,120]
[320775684,1711553454929,-500.0,0.00054246,120]
[320775685,1711553454939,-500.0,0.00054246,120]
[320775686,1711553454949,-222.36,0.00054246,120]
[320775687,1711553454958,-5575.89,0.00054246,120]
[320775688,1711553454968,-500.0,0.00054246,120]
[320775689,1711553454977,-5732.32,0.00054246,120]
[320775690,1711553454987,-15721.57,0.00054246,120]
[320775691,1711553454997,-40785.24,0.00054246,120]
[320775692,1711553455007,-500.0,0.00054246,120]
[320775693,1711553455016,-500.0,0.00054246,120]
[320775694,1711553455026,-2439.94,0.00054246,120]
[320775695,1711553455035,-2118.14,0.00054246,120]
[320775696,1711553455046,-500.0,0.00054246,120]
[320775697,1711553455057,-3489.67,0.00054246,120]
[320775698,1711553455069,-4517.81,0.00054246,120]
[320775699,1711553455079,-722.58,0.00054246,120]
[320775700,1711553455089,-501.88337355,0.00054246,120]
[320775701,1711553455099,-500.0,0.00054246,120]
[320775702,1711553455109,-1758.1,0.00054246,120]
[320775703,1711553455118,-500.0,0.00054246,120]
[320775704,1711553455128,-6597.82,0.00054246,120]
[320775705,1711553455137,-286.02,0.00054246,120]
[320775706,1711553455147,-500.0,0.00054246,120]
[320775707,1711553455157,-500.0,0.00054246,120]
[320775708,1711553455168,-496.24205537,0.00054246,120]
[320775709,1711553455178,-500.0,0.00054246,120]
[320775710,1711553455187,-500.0,0.00054246,120]
[320775711,1711553455197,-500.0,0.00054246,120]
[320775712,1711553455206,-2086.13,0.00054246,120]
[320775713,1711553455217,-500.0,0.00054246,120]
[320775714,1711553455226,-917.46,0.00054246,120]
[320775715,1711553455236,-4851.72,0.00054246,120]
[320775716,1711553455246,-500.0,0.00054246,120]
[320775717,1711553455256,-500.0,0.00054246,120]
[320775718,1711553455266,-15293.57,0.00054246,120]
[320775719,1711553455276,-650.64,0.00054246,120]
[320775720,1711553455286,-2243.96,0.00054246,120]
[320775721,1711553455295,-500.0,0.00054246,120]
[320775722,1711553455305,-500.0,0.00054246,120]
[320775723,1711553455316,-500.0,0.00054246,120]
[320775724,1711553455325,-4177.03,0.00054246,120]
[320775725,1711553455336,-4670.76,0.00054246,120]
[320775726,1711553455346,-500.0,0.00054246,120]
[320775727,1711553455355,-574.56,0.00054246,120]
[320775728,1711553455365,-500.0,0.00054246,120]
[320775729,1711553455374,-500.0,0.00054246,120]
[320775730,1711553455384,-500.0,0.00054246,120]
[320775731,1711553455394,-8976.15,0.00054246,120]
[320775732,1711553455403,-2370.37,0.00054246,120]
[320775733,1711553455414,-1211.89,0.00054246,120]
[320775734,1711553455423,-500.0,0.00054246,120]
[320775735,1711553455433,-500.0,0.00054246,120]
[320775736,1711553455442,-500.0,0.00054246,120]
[320775737,1711553455451,-770.12,0.00054246,120]
[320775738,1711553455461,-2494.82,0.00054246,120]
[320775739,1711553455474,-2055.96,0.00054246,120]
[320775740,1711553455484,-500.0,0.00054246,120]
[320775741,1711553455496,-500.0,0.00054246,120]
[320775742,1711553455506,-500.0,0.00054246,120]
[320775743,1711553455516,-151.0,0.00054246,120]
[320775744,1711553455525,-500.0,0.00054246,120]
[320775745,1711553455537,-500.0,0.00054246,120]
[320775746,1711553455547,-500.0,0.00054246,120]
[320775747,1711553455557,-4094.91,0.00054246,120]
[320775748,1711553455574,-151.0,0.00054246,120]
[320775749,1711553455584,-500.0,0.00054246,120]
[320775750,1711553455594,-1037.81,0.00054246,120]
[320775751,1711553455604,-5481.22,0.00054246,120]
[320775752,1711553455613,-500.0,0.00054246,120]
[320775753,1711553455623,-517.85,0.00054246,7]
[320775754,1711553455633,-500.0,0.00054246,120]
[320775755,1711553455642,-1247.19,0.00054246,120]
[320775756,1711553455653,-502.78861518,0.00054246,120]
[320775757,1711553455663,-2203.05,0.00054246,120]
[320775758,1711553455673,-6740.46,0.00054246,120]
[320775759,1711553455683,-506.54094279,0.00054246,120]
[320775760,1711553455693,-151.0,0.00054246,120]
[320775761,1711553455703,-500.0,0.00054246,120]
[320775762,1711553455713,-500.0,0.00054246,120]
[320775763,1711553455723,-695.08,0.00054246,120]
[320775764,1711553455733,-510.14903988,0.00054246,120]
[320775765,1711553455743,-500.0,0.00054246,120]
[320775766,1711553455752,-875.57,0.00054246,120]
[320775767,1711553455762,-1100.58,0.00054246,120]
[320775768,1711553455772,-227.95035,0.00054246,120]
[320775769,1711553455782,-500.0,0.00054246,120]
[320775770,1711553455793,-500.0,0.00054246,120]
[320775771,1711553455803,-500.0,0.00054246,120]
[320775772,1711553455813,-1980.91,0.00054246,120]
[320775773,1711553455825,-2524.9,0.00054246,120]
[320775774,1711553455835,-1277.4,0.00054246,120]
[320775775,1711553455846,-500.0,0.00054246,120]
[320775776,1711553455855,-499.3669036,0.00054246,120]
[320775777,1711553455866,-665.6,0.00054246,120]
[320775778,1711553455875,-151.0,0.00054246,30]
[320775779,1711553455885,-6780.06,0.00054246,120]
[320775780,1711553455895,-500.0,0.00054246,120]
[320775781,1711553455905,-500.0,0.00054246,120]
[320775782,1711553455915,-2890.45,0.00054246,120]
[320775783,1711553455925,-1380.64,0.00054246,120]
[320775784,1711553455934,-151.0,0.00054246,120]
[320775785,1711553455943,-506.94737784,0.00054246,120]
[320775786,1711553455954,-2894.79,0.00054246,120]
[320775787,1711553455964,-264.327424,0.00054246,30]
[320775788,1711553455974,-507.01072924,0.00054246,120]
[320775789,1711553455985,-500.0,0.00054246,65]
[320775790,1711553455995,-831.4,0.00054246,120]
[320775791,1711553456006,-500.0,0.00054246,120]
[320775792,1711553456016,-2473.02,0.00054246,120]
[320775793,1711553456026,-500.0,0.00054246,120]
[320775794,1711553456037,-652.47,0.00054246,120]
[320775795,1711553456047,-833.55,0.00054246,120]
[320775796,1711553456057,-500.0,0.00054246,85]
[320775797,1711553456069,-674.38,0.00054246,120]
[320775798,1711553456079,-500.0,0.00054246,120]
[320775799,1711553456088,-571.745405,0.00054246,120]
[320775800,1711553456099,-2436.51,0.00054246,120]
[320775801,1711553456112,-500.0,0.00054246,120]
[320775802,1711553456121,-1471.44,0.00054246,120]
[320775803,1711553456131,-2426.57,0.00054246,120]
[320775804,1711553456141,-571.745405,0.00054246,120]
[320775805,1711553456151,-500.0,0.00054246,120]
[320775806,1711553456161,-221.20509768,0.00054248,60]
[320775807,1711553456171,-1560.77305,0.0005425,69]
[320775808,1711553456181,-300.0,0.00054251,7]
[320775809,1711553456191,-150.0,0.00054252,60]
[320775810,1711553456201,-152.365744,0.00054252,60]
[320775811,1711553456212,-158.6803014,0.00054264,60]
[320775812,1711553456222,-208.0,0.0005428,30]
[320775813,1711553456232,-150.0,0.00054284,7]
[320775814,1711553456242,-150.0,0.00054294,7]
[320775815,1711553456252,-152.87854309,0.00054313,60]
[320775816,1711553456262,-150.0,0.00054318,7]
[320775817,1711553456272,-150.0,0.00054351,7]
[320775818,1711553456281,-151.1590358,0.00054355,61]
[320775819,1711553456291,-800.0,0.00054356,30]
[320775820,1711553456301,-500.0,0.00054356,30]
[320775821,1711553456311,-152.87854309,0.00054356,60]
[320775822,1711553456325,-152.365744,0.00054364,60]
[320775823,1711553456335,-150.0,0.00054375,7]
[320775824,1711553456344,-150.0,0.0005438,7]
[320775825,1711553456354,-152.87854309,0.00054394,60]
[320775826,1711553456364,-150.0,0.00054395,7]
[320775827,1711553456374,-152.365744,0.00054403,60]
[320775828,1711553456384,-150.0,0.00054404,7]
[320775829,1711553456393,-150.0,0.00054407,7]
[320775830,1711553456403,-150.0,0.00054415,7]
[320775831,1711553456413,-160.81730332,0.00054428,60]
[320775832,1711553456423,-150.0,0.00054429,7]
[320775833,1711553456432,-150.0,0.00054433,7]
[320775834,1711553456444,-150.0,0.00054433,7]
[320775835,1711553456453,-1450.5839725,0.00054435,120]
[320775836,1711553456463,-152.87854309,0.00054438,60]
[320775837,1711553456476,-150.0,0.00054441,7]
[320775838,1711553456486,-300.0,0.00054449,7]
[320775839,1711553456496,-150.0,0.00054453,7]
[320775840,1711553456506,-1560.77305,0.0005446,70]
[320775841,1711553456516,-154.11029901,0.0005446,60]
[320775842,1711553456720,-1029.84,0.00054466,120]
[320775843,1711553456757,-150.0,0.00054475,7]
[320775844,1711553456768,-150.0,0.00054475,7]
[320775845,1711553456778,-3999.999999,0.0005448,120]
[320775846,1711553456789,-151.0,0.0005448,120]
[320775847,1711553456799,-151.0,0.0005448,120]
[320775848,1711553456809,-151.0,0.0005448,120]
[320775849,1711553456822,-151.334142,0.0005448,21]
[320775850,1711553456831,-168.606571,0.0005448,120]
[320775851,1711553456840,-151.499665,0.0005448,3]
[320775852,1711553456850,-151.0,0.0005448,120]
[320775853,1711553456860,-152.365744,0.00054499,60]
[320775854,1711553456870,-200.0,0.000545,30]
[320775855,1711553456881,-800.0,0.000545,30]
[320775856,1711553456890,-500.0,0.000545,30]
[320775857,1711553456900,-200.0,0.000545,30]
[320775858,1711553456910,-150.0,0.000545,7]
[320775859,1711553456920,-150.0,0.00054502,7]
[320775860,1711553456929,-500.0,0.00054504,30]
[320775861,1711553456939,-151.0,0.00054504,120]
[320775862,1711553456949,-151.0,0.00054504,120]
[320775863,1711553456958,-151.0,0.00054504,120]
[320775864,1711553456968,-151.0,0.00054504,120]
[320775865,1711553456978,-151.0,0.00054504,120]
[320775866,1711553456987,-151.0,0.00054504,120]
[320775867,1711553456997,-301.942585,0.00054504,120]
[320775868,1711553457006,-150.0,0.00054514,7]
[320775869,1711553457016,-500.0,0.00054519,90]
[320775870,1711553457026,-1000.0,0.00054519,90]
[320775871,1711553457035,-500.0,0.0005452,120]
[320775872,1711553457046,-500.0,0.0005452,120]
[320775873,1711553457055,-500.0,0.0005452,120]
[320775874,1711553457067,-500.0,0.0005452,120]
[320775875,1711553457078,-500.0,0.0005452,120]
[320775876,1711553457088,-533.84551001,0.0005452,120]
[320775877,1711553457098,-500.0,0.0005452,120]
[320775878,1711553457108,-500.0,0.0005452,120]
[320775879,1711553457118,-500.0,0.0005452,120]
[320775880,1711553457129,-514.1218272,0.0005452,120]
[320775881,1711553457140,-500.0,0.0005452,120]
[320775882,1711553457149,-509.54233857,0.0005452,120]
[320775883,1711553457160,-500.0,0.0005452,120]
[320775884,1711553457169,-500.0,0.0005452,120]
[320775885,1711553457179,-500.0,0.0005452,120]
[320775886,1711553457189,-505.84831035,0.0005452,120]
[320775887,1711553457198,-500.0,0.0005452,120]
[320775888,1711553457208,-500.0,0.0005452,120]
[320775889,1711553457217,-500.0,0.0005452,120]
[320775890,1711553457226,-565.4797096,0.0005452,120]
[320775891,1711553457236,-500.0,0.0005452,120]
[320775892,1711553457245,-500.0,0.0005452,120]
[320775893,1711553457255,-500.0,0.0005452,120]
[320775894,1711553457265,-500.0,0.0005452,120]
[320775895,1711553457275,-500.0,0.0005452,120]
[320775896,1711553457285,-500.0,0.0005452,120]
[320775897,1711553457294,-500.0,0.0005452,120]
[320775898,1711553457303,-500.0,0.0005452,120]
[320775899,1711553457313,-500.0,0.0005452,120]
[320775900,1711553457327,-460.93,0.0005452,120]
[320775901,1711553457336,-500.0,0.0005452,120]
[320775902,1711553457346,-550.00116159,0.0005452,120]
[320775903,1711553457356,-500.0,0.0005452,120]
[320775904,1711553457366,-500.0,0.0005452,120]
[320775905,1711553457376,-500.0,0.0005452,120]
[320775906,1711553457386,-510.51,0.0005452,120]
[320775907,1711553457397,-500.0,0.0005452,120]
[320775908,1711553457407,-500.0,0.0005452,120]
[320775909,1711553457417,-500.0,0.0005452,120]
[320775910,1711553457426,-500.0,0.0005452,120]
[320775911,1711553457436,-500.0,0.0005452,120]
[320775912,1711553457446,-500.0,0.0005452,120]
[320775913,1711553457455,-514.10088148,0.0005452,120]
[320775914,1711553457465,-500.0,0.0005452,120]
[320775915,1711553457474,-500.0,0.0005452,120]
[320775916,1711553457484,-500.0,0.0005452,120]
[320775917,1711553457495,-1596.73,0.0005452,120]
[320775918,1711553457505,-500.0,0.0005452,120]
[320775919,1711553457514,-500.0,0.0005452,120]
[320775920,1711553457524,-500.0,0.0005452,120]
[320775921,1711553457535,-367.56289817,0.0005452,120]
[320775922,1711553457544,-500.0,0.0005452,120]
[320775923,1711553457554,-500.0,0.0005452,120]
[320775924,1711553457563,-500.0,0.0005452,120]
[320775925,1711553457577,-500.0,0.0005452,120]
[320775926,1711553457587,-500.0,0.0005452,120]
[320775927,1711553457596,-851.83,0.0005452,120]
[320775928,1711553457606,-151.0,0.0005452,120]
[320775929,1711553457616,-500.0,0.0005452,120]
[320775930,1711553457626,-500.0,0.0005452,120]
[320775931,1711553457636,-500.0,0.0005452,120]
[320775932,1711553457646,-500.0,0.0005452,120]
[320775933,1711553457656,-500.0,0.0005452,120]
[320775934,1711553457666,-500.0,0.0005452,120]
[320775935,1711553457676,-500.0,0.0005452,120]
[320775936,1711553457685,-500.0,0.0005452,120]
[320775937,1711553457695,-758.43,0.0005452,120]
[320775938,1711553457705,-710.92,0.0005452,120]
[320775939,1711553457714,-500.0,0.0005452,120]
[320775940,1711553457725,-500.0,0.0005452,120]
[320775941,1711553457734,-151.0,0.0005452,120]
[320775942,1711553457744,-500.0,0.0005452,120]
[320775943,1711553457753,-500.0,0.0005452,120]
[320775944,1711553457763,-500.0,0.0005452,120]
[320775945,1711553457772,-500.0,0.0005452,120]
[320775946,1711553457781,-500.0,0.0005452,120]
[320775947,1711553457791,-500.0,0.0005452,120]
[320775948,1711553457800,-500.0,0.0005452,120]
[320775949,1711553457809,-500.0,0.0005452,120]
[320775950,1711553457823,-500.0,0.0005452,120]
[320775951,1711553457832,-151.0,0.0005452,120]
[320775952,1711553457841,-500.0,0.0005452,120]
[320775953,1711553457850,-500.0,0.0005452,120]
[320775954,1711553457861,-500.0,0.0005452,120]
[320775955,1711553457870,-500.0,0.0005452,120]
[320775956,1711553457880,-500.0,0.0005452,120]
[320775957,1711553457889,-500.0,0.0005452,120]
[320775958,1711553457898,-500.0,0.0005452,120]
[320775959,1711553457907,-500.0,0.0005452,120]
[320775960,1711553457916,-500.0,0.0005452,120]
[320775961,1711553457925,-500.0,0.0005452,120]